{"text_format":"1","workbook":"xlsx","n_sheets":1,"sheets":["Tabelle1"],"not_rendered":{"charts":0,"images":0,"macros":1,"external_links":1,"defined_names":2,"comments":0,"pivot_tables":0},"unopened":[],"bounds":{"document_bytes":16777216,"sheet_cells":100000,"rows_first":2000,"rows_last":500,"rows_between":2000,"halvings":0,"cell_chars":16384,"cell_head_chars":4096},"cells_cut":0,"cells_raw":0,"read":"whole","date_system":"1900"}

{"sheet":"Tabelle1","index":0,"n_rows":39,"n_cols":9,"rows_kept":39,"cut":false,"hidden":false,"merged":[]}
[]
[]
[]
[]
["Jahr",2025,{"$f":"B5-1","v":2024},{"$f":"B5-2","v":2023},"Durchschnitt"]
[null,null,null,null,null,null,null,"Prozente","maximal"]
["Einkommen brutto laut Bescheid selbständig",0,0,0,{"$f":"SUM(B7:D7)/3","v":0},null,2026,{"$f":"IF(B5>2021,0.15,0.13)","v":0.15},4950]
["GFB (Gewinnfreibetrag hinzurechnen max € 4.950,00)",null,null,null,{"$f":"SUM(B8:D8)/3","v":0},null,2025,{"$f":"IF(C5>2021,0.15,0.13)","v":0.15},4950]
["Investitionsfreibetrag",null,null,null,null,null,2024,{"$f":"IF(B7>2021,0.15,0.13)","v":0.13},4950]
["minus Einkommenssteuer",0,0,0,{"$f":"SUM(B10:D10)/3","v":0},null,2023,{"$f":"IF(C7>2021,0.15,0.13)","v":0.13},4500]
["minus Unterhaltsabsetzbeträge (1)",0,0,0,0,null,2022,{"$f":"IF(B9>2021,0.15,0.13)","v":0.13},4500]
["minus Familienbonus Plus (1)",0,0,0,0]
["Minus Alleinerzieher-, -verdienerabsetzbetrag (4)"]
["minus Steuerersparnis nicht anerkannte Abzüge - Summe (2)",0,0,0,0]
["minus Fahrtkosten (3)",0,0,0,0]
["plus 50% Diäten",0,0,0,0]
["sonstige Korrekturposten (plus / minus)",0,0,0,0]
[]
["jährliche Unterhaltsbemessungsgrundlage",{"$f":"SUM(B7:B17)","v":0},{"$f":"SUM(C7:C17)","v":0},0,0]
["monatliche Unterhaltsbemessungsgrundlage",{"$f":"B19/12","v":0},{"$f":"C19/12","v":0},0,0]
[]
["Kennwort: gesperrt"]
[]
["Abzüge mit - Zeichen eingeben!"]
[]
["(1) OGH 11.12.2019,  4 Ob 150/19s; Tews, EF-Z 2010/12 Missverständnis bei Familienbeihilfenanrechnung"]
["(2) OGH OGH 23.11.2016, 1 Ob 206/16z; Tews, EF-Z 2016, 088 - Steuerlich abziehbare Ausgaben "]
["(3) ständige Judikatur; zum Selbstbehalt siehe"]
["      Tews EF-Z 2015/160, Der unausrottbare Fahrtkostenselbstbehalt"]
["      dies nur abziehen, wenn sie in der Einnahmen- / Ausabgabenrechnung"]
["      nicht berücksichtigt sind"]
["(4) OGH 01.07.2004, 1 Ob 84/04s"]
[]
["Abkürzungen:"]
[]
["PU = Prozentunterhalt"]
["LG = Luxusgrenze"]
["UvR = Unterhalt VOR Rundung"]
["UnR = Unterhalt NACH Rundung"]